fUSD/lending_fUSD_20241220
["ID","MTS","AMOUNT","RATE_DAILY","PERIOD"]
[346106533,1734706265530,-934.5,0.00023013,4]
[346106534,1734706265540,-518.41,0.00023013,4]
[346106535,1734706265553,-517.06,0.00023013,4]
[346106536,1734706265563,-709.19,0.00023013,4]
[346106537,1734706265573,-681.89,0.00023013,4]
[346106538,1734706265582,-500.0,0.00023013,4]
[346106539,1734706265591,-1168.93,0.00023013,4]
[346106540,1734706265601,-500.0,0.00023013,4]
[346106541,1734706265611,-262.13672066,0.00023013,4]
[346106542,1734706265621,-7786.57,0.00023013,4]
[346106543,1734706265630,-500.0,0.00023013,4]
[346106544,1734706265639,-500.0,0.00023013,4]
[346106545,1734706265648,-500.0,0.00023013,4]
[346106546,1734706265659,-1513.63,0.00023013,4]
[346106547,1734706265671,-500.0,0.00023013,4]
[346106548,1734706265680,-1594.97,0.00023013,4]
[346106549,1734706265690,-4930.1,0.00023013,4]
[346106550,1734706265701,-500.0,0.00023013,4]
[346106551,1734706265710,-722.19,0.00023013,4]
[346106552,1734706265719,-570.24,0.00023013,4]
[346106553,1734706265728,-535.21,0.00023013,4]
[346106554,1734706265738,-500.0,0.00023013,4]
[346106555,1734706265748,-704.71,0.00023013,4]
[346106556,1734706265758,-500.0,0.00023013,4]
[346106557,1734706265768,-661.16,0.00023013,4]
[346106558,1734706265777,-871.46,0.00023013,4]
[346106559,1734706265786,-500.0,0.00023013,4]
[346106560,1734706265796,-500.0,0.00023013,4]
[346106561,1734706265806,-827.8,0.00023013,4]
[346106562,1734706265815,-1165.6,0.00023013,4]
[346106563,1734706265824,-1055.56,0.00023013,4]
[346106564,1734706265834,-500.0,0.00023013,4]
[346106565,1734706265844,-500.0,0.00023013,4]
[346106566,1734706265853,-821.14,0.00023013,4]
[346106567,1734706265863,-500.0,0.00023013,4]
[346106568,1734706265872,-500.0,0.00023013,4]
[346106569,1734706265882,-500.0,0.00023013,4]
[346106570,1734706265891,-1326.77,0.00023013,4]
[346106571,1734706265901,-500.0,0.00023013,4]
[346106572,1734706265910,-500.0,0.00023013,4]
[346106573,1734706265919,-500.0,0.00023013,4]
[346106574,1734706265929,-535.94,0.00023013,4]
[346106575,1734706265939,-625.47,0.00023013,4]
[346106576,1734706265948,-500.0,0.00023013,4]
[346106577,1734706265957,-500.0,0.00023013,4]
[346106578,1734706265967,-1263.28,0.00023013,4]
[346106579,1734706265976,-500.0,0.00023013,4]
[346106580,1734706265986,-794.37,0.00023013,4]
[346106581,1734706265996,-500.0,0.00023013,4]
[346106582,1734706266005,-500.0,0.00023013,4]
[346106583,1734706266015,-511.24,0.00023013,4]
[346106584,1734706266024,-500.0,0.00023013,4]
[346106585,1734706266033,-500.0,0.00023013,4]
[346106586,1734706266045,-150.0,0.00023021,4]
[346106587,1734706266056,-150.0,0.00023069,4]
[346106588,1734706266065,-322.98922,0.00023088,7]
[346106589,1734706266075,-5597.693481,0.00023091,2]
[346106590,1734706266084,-1986.90059895,0.00023092,2]
[346106591,1734706266094,-230.0,0.000231,2]
[346106592,1734706266103,-150.0,0.00023114,2]
[346106593,1734706266112,-718.66738302,0.0002312,2]
[346106594,1734706266122,-150.0,0.00023121,4]
[346106595,1734706266131,-1446.62,0.00023134,2]
[346106596,1734706266140,-150.0,0.00023146,4]
[346106597,1734706266149,-500.0,0.00023149,2]
[346106598,1734706266159,-150.0,0.00023155,2]
[346106599,1734706266169,-150.0,0.00023159,2]
[346106600,1734706266178,-150.0,0.0002317,4]
[346106601,1734706266187,-169.65616092,0.00023172,2]
[346106602,1734706266197,-1000.0,0.00023179,2]
[346106603,1734706266206,-491.32,0.00023191,2]
[346106604,1734706266215,-150.0,0.00023207,2]
[346106605,1734706266225,-213.0,0.0002322,2]
[346106606,1734706266234,-150.0,0.00023223,4]
[346106607,1734706266244,-357.99572636,0.00023235,2]
[346106608,1734706266253,-150.0,0.00023251,2]
[346106609,1734706266263,-150.0,0.00023253,2]
[346106610,1734706266273,-1400.0,0.00023256,2]
[346106611,1734706266282,-600.0,0.00023256,2]
[346106612,1734706266292,-150.0,0.00023267,2]
[346106613,1734706266302,-150.0,0.00023279,2]
[346106614,1734706266312,-325.41,0.00023286,2]
[346106615,1734706266321,-999.0,0.00023286,4]
[346106616,1734706266330,-294.213242,0.00023287,4]
[346106617,1734706266339,-500.0,0.00023287,4]
[346106618,1734706266349,-260.901097,0.00023287,4]
[346106619,1734706266358,-502.55,0.00023287,4]
[346106620,1734706266368,-500.0,0.00023287,4]
[346106621,1734706266378,-500.0,0.00023287,4]
[346106622,1734706266387,-500.0,0.00023287,4]
[346106623,1734706266397,-500.0,0.00023287,4]
[346106624,1734706266406,-500.0,0.00023287,4]
[346106625,1734706266415,-500.0,0.00023287,4]
[346106626,1734706266425,-500.0,0.00023287,4]
[346106627,1734706266435,-500.0,0.00023287,4]
[346106628,1734706266445,-500.0,0.00023287,4]
[346106629,1734706266454,-500.0,0.00023287,4]
[346106630,1734706266463,-500.0,0.00023287,4]
[346106631,1734706266472,-500.0,0.00023287,4]
[346106632,1734706266482,-500.0,0.00023287,4]
[346106633,1734706266491,-500.0,0.00023287,4]
[346106634,1734706266500,-500.0,0.00023287,4]
[346106635,1734706266510,-500.0,0.00023287,4]
[346106636,1734706266519,-525.83,0.00023287,4]
[346106637,1734706266529,-500.0,0.00023287,4]
[346106638,1734706266538,-500.0,0.00023287,4]
[346106639,1734706266549,-500.0,0.00023287,4]
[346106640,1734706266558,-500.0,0.00023287,4]
[346106641,1734706266568,-448.320695,0.00023287,4]
[346106642,1734706266578,-517.83,0.00023287,4]
[346106643,1734706266587,-639.87,0.00023287,4]
[346106644,1734706266596,-500.0,0.00023287,4]
[346106645,1734706266605,-833.18,0.00023287,4]
[346106646,1734706266615,-613.17406702,0.00023287,4]
[346106647,1734706266624,-680.33,0.00023287,4]
[346106648,1734706266633,-500.0,0.00023287,4]
[346106649,1734706266642,-500.0,0.00023287,4]
[346106650,1734706266652,-500.0,0.00023287,4]
[346106651,1734706266661,-1075.01,0.00023287,4]
[346106652,1734706266673,-615.34,0.00023287,4]
[346106653,1734706266682,-500.0,0.00023287,4]
[346106654,1734706266691,-500.0,0.00023287,4]
[346106655,1734706266702,-597.01,0.00023287,4]
[346106656,1734706266711,-500.0,0.00023287,4]
[346106657,1734706266720,-500.0,0.00023287,4]
[346106658,1734706266729,-512.41,0.00023287,4]
[346106659,1734706266738,-618.08,0.00023287,4]
[346106660,1734706266748,-500.0,0.00023287,2]
[346106661,1734706266758,-500.0,0.00023287,4]
[346106662,1734706266767,-642.14,0.00023287,4]
[346106663,1734706266776,-500.0,0.00023287,4]
[346106664,1734706266785,-648.83,0.00023287,4]
[346106665,1734706266795,-786.34,0.00023287,4]
[346106666,1734706266805,-500.0,0.00023287,4]
[346106667,1734706266814,-515.43,0.00023287,4]
[346106668,1734706266823,-643.63,0.00023287,4]
[346106669,1734706266832,-500.0,0.00023287,4]
[346106670,1734706266841,-861.69,0.00023287,4]
[346106671,1734706266851,-500.0,0.00023287,4]
[346106672,1734706266860,-500.0,0.00023287,4]
[346106673,1734706266870,-500.0,0.00023287,4]
[346106674,1734706266879,-500.0,0.00023287,4]
[346106675,1734706266889,-500.0,0.00023287,4]
[346106676,1734706266898,-500.0,0.00023287,4]
[346106677,1734706266907,-500.0,0.00023287,4]
[346106678,1734706266916,-500.0,0.00023287,4]
[346106679,1734706266925,-500.0,0.00023287,4]
[346106680,1734706266934,-500.0,0.00023287,4]
[346106681,1734706266943,-500.0,0.00023287,4]
[346106682,1734706266952,-564.26,0.00023287,4]
[346106683,1734706266962,-500.0,0.00023287,4]
[346106684,1734706266971,-500.0,0.00023287,4]
[346106685,1734706266980,-500.0,0.00023287,4]
[346106686,1734706266988,-500.0,0.00023287,4]
[346106687,1734706266998,-500.0,0.00023287,4]
[346106688,1734706267007,-500.0,0.00023287,4]
[346106689,1734706267017,-701.77,0.00023287,4]
[346106690,1734706267026,-500.0,0.00023287,4]
[346106691,1734706267036,-683.55,0.00023287,4]
[346106692,1734706267046,-500.0,0.00023287,4]
[346106693,1734706267055,-500.0,0.00023287,4]
[346106694,1734706267064,-500.0,0.00023287,4]
[346106695,1734706267074,-500.0,0.00023287,4]
[346106696,1734706267083,-500.0,0.00023287,4]
[346106697,1734706267093,-500.0,0.00023287,4]
[346106698,1734706267103,-819.12,0.00023287,4]
[346106699,1734706267112,-551.65,0.00023287,4]
[346106700,1734706267122,-660.1,0.00023287,4]
[346106701,1734706267131,-500.0,0.00023287,4]
[346106702,1734706267141,-500.0,0.00023287,4]
[346106703,1734706267151,-500.0,0.00023287,4]
[346106704,1734706267161,-803.14,0.00023287,4]
[346106705,1734706267170,-500.0,0.00023287,4]
[346106706,1734706267180,-500.0,0.00023287,4]
[346106707,1734706267189,-745.51,0.00023287,4]
[346106708,1734706267199,-500.0,0.00023287,4]
[346106709,1734706267209,-500.0,0.00023287,4]
[346106710,1734706267219,-500.0,0.00023287,4]
[346106711,1734706267229,-500.0,0.00023287,4]
[346106712,1734706267238,-841.98,0.00023287,4]
[346106713,1734706267248,-500.0,0.00023287,4]
[346106714,1734706267258,-500.0,0.00023287,4]
[346106715,1734706267268,-637.76,0.00023287,4]
[346106716,1734706267278,-500.54,0.00023287,4]
[346106717,1734706267288,-500.0,0.00023287,4]
[346106718,1734706267298,-500.0,0.00023287,4]
[346106719,1734706267308,-500.0,0.00023287,4]
[346106720,1734706267318,-500.0,0.00023287,4]
[346106721,1734706267328,-500.0,0.00023287,4]
[346106722,1734706267337,-500.0,0.00023287,4]
[346106723,1734706267346,-1415.46,0.00023287,4]
[346106724,1734706267356,-500.0,0.00023287,4]
[346106725,1734706267366,-721.22,0.00023287,4]
[346106726,1734706267376,-606.15,0.00023287,4]
[346106727,1734706267386,-527.65,0.00023287,4]
[346106728,1734706267396,-1380.54,0.00023287,4]
[346106729,1734706267405,-500.0,0.00023287,4]
[346106730,1734706267415,-246.12,0.00023287,4]
[346106731,1734706267424,-751.8,0.00023287,4]
[346106732,1734706267433,-619.03,0.00023287,4]
[346106733,1734706267442,-572.05,0.00023287,4]
[346106734,1734706267452,-669.68,0.00023287,4]
[346106735,1734706267461,-654.18,0.00023287,4]
[346106736,1734706267471,-689.33,0.00023287,4]
[346106737,1734706267481,-500.0,0.00023287,4]
[346106738,1734706267491,-500.0,0.00023287,4]
[346106739,1734706267500,-500.0,0.00023287,4]
[346106740,1734706267510,-500.0,0.00023287,4]
[346106741,1734706267520,-607.77,0.00023287,4]
[346106742,1734706267530,-500.0,0.00023287,4]
[346106743,1734706267540,-500.0,0.00023287,4]
[346106744,1734706267552,-500.0,0.00023287,4]
[346106745,1734706267562,-554.27,0.00023287,4]
[346106746,1734706267571,-500.0,0.00023287,4]
[346106747,1734706267582,-500.0,0.00023287,4]
[346106748,1734706267592,-778.32,0.00023287,4]
[346106749,1734706267602,-500.0,0.00023287,4]
[346106750,1734706267611,-500.0,0.00023287,4]
[346106751,1734706267621,-508.44,0.00023287,4]
[346106752,1734706267632,-500.0,0.00023287,4]
[346106753,1734706267642,-500.0,0.00023287,4]
[346106754,1734706267652,-500.0,0.00023287,4]
[346106755,1734706267663,-500.0,0.00023287,4]
[346106756,1734706267674,-500.0,0.00023287,4]
[346106757,1734706267684,-500.0,0.00023287,4]
[346106758,1734706267693,-500.0,0.00023287,4]
[346106759,1734706267705,-500.0,0.00023287,4]
[346106760,1734706267724,-541.80364773,0.00023287,4]
[346106761,1734706267735,-500.0,0.00023287,4]
[346106762,1734706267746,-500.0,0.00023287,4]
[346106763,1734706267757,-500.0,0.00023287,4]
[346106764,1734706267767,-500.0,0.00023287,4]
[346106765,1734706267777,-632.09,0.00023287,4]
[346106766,1734706267787,-500.0,0.00023287,4]
[346106767,1734706267796,-511.2,0.00023287,4]
[346106768,1734706267806,-500.0,0.00023287,4]
[346106769,1734706267816,-500.0,0.00023287,4]
[346106770,1734706267827,-500.0,0.00023287,4]
[346106771,1734706267837,-500.0,0.00023287,4]
[346106772,1734706267847,-500.0,0.00023287,4]
[346106773,1734706267857,-500.0,0.00023287,4]
[346106774,1734706267868,-925.32,0.00023287,4]
[346106775,1734706267878,-500.0,0.00023287,4]
[346106776,1734706267888,-500.0,0.00023287,4]
[346106777,1734706267898,-500.0,0.00023287,4]
[346106778,1734706267908,-822.47,0.00023287,4]
[346106779,1734706267918,-500.0,0.00023287,4]
[346106780,1734706267928,-1757.83,0.00023287,4]
[346106781,1734706267939,-617.61,0.00023287,4]
[346106782,1734706267949,-1104.64,0.00023287,4]
[346106783,1734706267960,-502.16,0.00023287,4]
[346106784,1734706267970,-1801.99,0.00023287,4]
[346106785,1734706267981,-835.37,0.00023287,4]
[346106786,1734706267992,-659.58,0.00023287,4]
[346106787,1734706268002,-1099.88,0.00023287,4]
[346106788,1734706268012,-500.0,0.00023287,4]
[346106789,1734706268023,-1644.62,0.00023287,4]
[346106790,1734706268033,-511.31,0.00023287,4]
[346106791,1734706268046,-759.0,0.00023287,4]
[346106792,1734706268056,-575.67,0.00023287,4]
[346106793,1734706268067,-1240.16,0.00023287,4]
[346106794,1734706268078,-500.0,0.00023287,4]
[346106795,1734706268089,-3305.88,0.00023287,4]
[346106796,1734706268100,-567.37,0.00023287,4]
[346106797,1734706268112,-500.0,0.00023287,4]
[346106798,1734706268123,-500.0,0.00023287,4]
[346106799,1734706268135,-500.0,0.00023287,4]
[346106800,1734706268147,-500.0,0.00023287,4]
[346106801,1734706268158,-500.0,0.00023287,4]
[346106802,1734706268169,-2238.55,0.00023287,4]
[346106803,1734706268180,-500.0,0.00023287,4]
[346106804,1734706268191,-500.0,0.00023287,4]
[346106805,1734706268201,-500.0,0.00023287,4]
[346106806,1734706268212,-1944.32,0.00023287,4]
[346106807,1734706268223,-500.0,0.00023287,4]
[346106808,1734706268234,-1038.55,0.00023287,4]
[346106809,1734706268244,-500.0,0.00023287,4]
[346106810,1734706268255,-3471.44,0.00023287,4]
[346106811,1734706268265,-500.0,0.00023287,4]
[346106812,1734706268276,-500.0,0.00023287,4]
[346106813,1734706268286,-500.0,0.00023287,4]
[346106814,1734706268297,-762.32,0.00023287,4]
[346106815,1734706268307,-500.0,0.00023287,4]
[346106816,1734706268318,-500.0,0.00023287,4]
[346106817,1734706268328,-1011.14,0.00023287,4]
[346106818,1734706268339,-543.28,0.00023287,4]
[346106819,1734706268349,-500.0,0.00023287,4]
[346106820,1734706268360,-500.0,0.00023287,4]
[346106821,1734706268370,-644.05565889,0.00023287,4]
[346106822,1734706268380,-655.46,0.00023287,4]
[346106823,1734706268391,-981.9,0.00023287,4]
[346106824,1734706268400,-1847.66,0.00023287,4]
[346106825,1734706268411,-1676.58,0.00023287,4]
[346106826,1734706268421,-500.0,0.00023287,4]
[346106827,1734706268431,-1032.97,0.00023287,4]
[346106828,1734706268442,-500.0,0.00023287,4]
[346106829,1734706268452,-500.0,0.00023287,4]
[346106830,1734706268462,-628.86,0.00023287,4]
[346106831,1734706268472,-1541.57,0.00023287,4]
[346106832,1734706268482,-500.0,0.00023287,4]
[346106833,1734706268492,-2244.96,0.00023287,4]
[346106834,1734706268502,-500.0,0.00023287,4]
[346106835,1734706268512,-812.21,0.00023287,4]
[346106836,1734706268522,-500.0,0.00023287,4]
[346106837,1734706268532,-500.0,0.00023287,4]
[346106838,1734706268542,-500.0,0.00023287,4]
[346106839,1734706268556,-1809.6,0.00023287,4]
[346106840,1734706268567,-500.0,0.00023287,4]
[346106841,1734706268577,-500.0,0.00023287,4]
[346106842,1734706268587,-500.0,0.00023287,4]
[346106843,1734706268598,-727.11,0.00023287,4]
[346106844,1734706268608,-500.0,0.00023287,4]
[346106845,1734706268618,-500.0,0.00023287,4]
[346106846,1734706268628,-500.0,0.00023287,4]
[346106847,1734706268639,-647.27,0.00023287,4]
[346106848,1734706268650,-2756.52,0.00023287,4]
[346106849,1734706268664,-828.43,0.00023287,4]
[346106850,1734706268677,-500.0,0.00023287,4]
[346106851,1734706268688,-696.14,0.00023287,4]
[346106852,1734706268699,-500.0,0.00023287,4]
[346106853,1734706268709,-1639.23,0.00023287,4]
[346106854,1734706268719,-9762.21,0.00023287,4]
[346106855,1734706268729,-1144.67,0.00023287,4]
[346106856,1734706268740,-1051.74,0.00023287,4]
[346106857,1734706268750,-688.86,0.00023287,4]
[346106858,1734706268761,-531.8,0.00023287,4]
[346106859,1734706268771,-500.0,0.00023287,4]
[346106860,1734706268786,-500.0,0.00023287,4]
[346106861,1734706268798,-500.0,0.00023287,4]
[346106862,1734706268809,-4042.65,0.00023287,4]
[346106863,1734706268819,-500.0,0.00023287,4]
[346106864,1734706268829,-913.81,0.00023287,4]
[346106865,1734706268839,-1657.48,0.00023287,4]
[346106866,1734706268850,-1139.77,0.00023287,4]
[346106867,1734706268860,-524.37715527,0.00023287,4]
[346106868,1734706268871,-1298.5,0.00023287,4]
[346106869,1734706268881,-500.0,0.00023287,4]
[346106870,1734706268891,-2750.19,0.00023287,4]
[346106871,1734706268901,-500.0,0.00023287,4]
[346106872,1734706268911,-1719.51,0.00023287,4]
[346106873,1734706268922,-502.16286263,0.00023287,4]
[346106874,1734706268932,-1028.29,0.00023287,4]
[346106875,1734706268943,-500.0,0.00023287,4]
[346106876,1734706268953,-1101.52,0.00023287,4]
[346106877,1734706268964,-1355.77,0.00023287,4]
[346106878,1734706268974,-428.77,0.00023287,4]
[346106879,1734706268984,-500.0,0.00023287,4]
[346106880,1734706268995,-1403.12,0.00023287,4]
[346106881,1734706269004,-500.0,0.00023287,4]
[346106882,1734706269014,-500.0,0.00023287,4]
[346106883,1734706269024,-500.0,0.00023287,4]
[346106884,1734706269035,-2413.98,0.00023287,4]
[346106885,1734706269047,-1096.54,0.00023287,4]
[346106886,1734706269057,-2100.15,0.00023287,4]
[346106887,1734706269067,-1447.53,0.00023287,4]
[346106888,1734706269078,-500.0,0.00023287,4]
[346106889,1734706269088,-1164.92,0.00023287,4]
[346106890,1734706269100,-500.0,0.00023287,4]
[346106891,1734706269112,-806.07,0.00023287,4]
[346106892,1734706269123,-500.0,0.00023287,4]
[346106893,1734706269133,-946.66,0.00023287,4]
[346106894,1734706269143,-500.0,0.00023287,4]
[346106895,1734706269153,-2139.52,0.00023287,4]
[346106896,1734706269163,-500.0,0.00023287,4]
[346106897,1734706269175,-9726.29,0.00023287,4]
[346106898,1734706269185,-1420.63,0.00023287,4]
[346106899,1734706269196,-500.0,0.00023287,4]
[346106900,1734706269206,-1128.68,0.00023287,4]
[346106901,1734706269216,-500.0,0.00023287,4]
[346106902,1734706269227,-500.0,0.00023287,4]
[346106903,1734706269237,-500.0,0.00023287,4]
[346106904,1734706269247,-2084.41,0.00023287,4]
[346106905,1734706269259,-348.03603662,0.00023287,4]
[346106906,1734706269270,-1010.95,0.00023287,4]
[346106907,1734706269280,-500.0,0.00023287,4]
[346106908,1734706269291,-3050.34,0.00023287,4]
[346106909,1734706269304,-1673.65,0.00023287,4]
[346106910,1734706269315,-500.0,0.00023287,4]
[346106911,1734706269326,-500.0,0.00023287,4]
[346106912,1734706269340,-1176.91,0.00023287,4]
[346106913,1734706269351,-1000.0,0.00023287,4]
[346106914,1734706269362,-500.0,0.00023287,4]
[346106915,1734706269372,-589.28,0.00023287,4]
[346106916,1734706269384,-500.0,0.00023287,4]
[346106917,1734706269396,-725.97,0.00023287,4]
[346106918,1734706269656,-500.0,0.00023287,4]
[346106919,1734706269674,-500.0,0.00023287,4]
[346106920,1734706269684,-767.18,0.00023287,4]
[346106921,1734706269694,-1104.52,0.00023287,4]
[346106922,1734706269706,-500.0,0.00023287,4]
[346106923,1734706269715,-830.63,0.00023287,4]
[346106924,1734706269725,-178.80531532,0.00023287,4]
[346106925,1734706269734,-500.0,0.00023287,4]
[346106926,1734706269744,-934.5,0.00023287,4]
[346106927,1734706269754,-518.41,0.00023287,4]
[346106928,1734706269763,-517.06,0.00023287,4]
[346106929,1734706269773,-709.19,0.00023287,4]
[346106930,1734706269783,-681.89,0.00023287,4]
[346106931,1734706269792,-500.0,0.00023287,4]
[346106932,1734706269805,-1168.93,0.00023287,4]
[346106933,1734706269816,-500.0,0.00023287,4]
[346106934,1734706269826,-7786.57,0.00023287,4]
[346106935,1734706269835,-500.0,0.00023287,4]
[346106936,1734706269844,-500.0,0.00023287,4]
[346106937,1734706269854,-500.0,0.00023287,4]
[346106938,1734706269864,-1513.63,0.00023287,4]
[346106939,1734706269873,-500.0,0.00023287,4]
[346106940,1734706269883,-1594.97,0.00023287,4]
[346106941,1734706269892,-4930.1,0.00023287,4]
[346106942,1734706269902,-1053.31,0.00023287,5]
[346106943,1734706269911,-1053.31,0.00023287,5]
[346106944,1734706269922,-500.0,0.00023287,4]
[346106945,1734706269932,-1053.31,0.00023287,5]
[346106946,1734706269941,-1053.31,0.00023287,5]
[346106947,1734706269951,-722.19,0.00023287,4]
[346106948,1734706269960,-1053.31,0.00023287,5]
[346106949,1734706269969,-1053.31,0.00023287,5]
[346106950,1734706269979,-570.24,0.00023287,4]
[346106951,1734706269988,-535.21,0.00023287,4]
[346106952,1734706269998,-500.0,0.00023287,4]
[346106953,1734706270008,-704.71,0.00023287,4]
[346106954,1734706270017,-500.0,0.00023287,4]
[346106955,1734706270027,-661.16,0.00023287,4]
[346106956,1734706270036,-871.46,0.00023287,4]
[346106957,1734706270048,-500.0,0.00023287,4]
[346106958,1734706270058,-500.0,0.00023287,4]
[346106959,1734706270068,-827.8,0.00023287,4]
[346106960,1734706270078,-1165.6,0.00023287,4]
[346106961,1734706270088,-1055.56,0.00023287,4]
[346106962,1734706270098,-500.0,0.00023287,4]
[346106963,1734706270108,-500.0,0.00023287,4]
[346106964,1734706270118,-500.0,0.00023287,4]
[346106965,1734706270128,-821.14,0.00023287,4]
[346106966,1734706270138,-500.0,0.00023287,4]
[346106967,1734706270148,-1326.77,0.00023287,4]
[346106968,1734706270158,-500.0,0.00023287,4]
[346106969,1734706270168,-500.0,0.00023287,4]
[346106970,1734706270178,-500.0,0.00023287,4]
[346106971,1734706270187,-500.0,0.00023287,4]
[346106972,1734706270198,-535.94,0.00023287,4]
[346106973,1734706270208,-625.47,0.00023287,4]
[346106974,1734706270218,-500.0,0.00023287,4]
[346106975,1734706270227,-500.0,0.00023287,4]
[346106976,1734706270237,-1263.28,0.00023287,4]
[346106977,1734706270247,-500.0,0.00023287,4]
[346106978,1734706270257,-794.37,0.00023287,4]
[346106979,1734706270267,-500.0,0.00023287,4]
[346106980,1734706270277,-500.0,0.00023287,4]
[346106981,1734706270287,-511.24,0.00023287,4]
[346106982,1734706270297,-500.0,0.00023287,4]
[346106983,1734706270307,-500.0,0.00023287,4]
[346106984,1734706270316,-176.04,0.00023288,2]
[346106985,1734706270326,-150.0,0.00023288,2]
[346106986,1734706270336,-150.0,0.00023288,2]
[346106987,1734706270345,-322.98922,0.00023288,7]
[346106988,1734706270355,-150.0,0.00023291,2]
[346106989,1734706270364,-150.0,0.000233,2]
[346106990,1734706270374,-150.0,0.00023301,4]
[346106991,1734706270383,-150.0,0.00023319,2]
[346106992,1734706270393,-150.0,0.0002332,4]
[346106993,1734706270402,-1986.90059895,0.00023322,2]
[346106994,1734706270411,-150.0,0.00023338,2]
[346106995,1734706270420,-150.0,0.0002334,2]
[346106996,1734706270430,-150.0,0.00023343,2]
[346106997,1734706270439,-150.0,0.00023343,2]
[346106998,1734706270448,-150.0,0.00023376,2]
[346106999,1734706270458,-150.0,0.00023378,4]
[346107000,1734706270468,-150.0,0.00023386,4]
[346107001,1734706270478,-150.0,0.00023392,2]
[346107002,1734706270488,-676.13,0.00023397,2]
[346107003,1734706270498,-6700.0,0.000234,8]
[346107004,1734706270508,-282.2430785,0.00023402,2]
[346107005,1734706270518,-3972.46632428,0.00023407,2]
[346107006,1734706270528,-1159.55727502,0.00023407,2]
[346107007,1734706270538,-150.0,0.00023411,2]
[346107008,1734706270554,-500.01,0.00023415,7]
[346107009,1734706270565,-150.0,0.00023416,2]
[346107010,1734706270575,-150.0,0.00023432,2]
[346107011,1734706270586,-5597.693481,0.00023435,2]
[346107012,1734706270596,-150.0,0.00023438,2]
[346107013,1734706270606,-150.0,0.00023442,2]
[346107014,1734706270616,-150.0,0.00023453,2]
[346107015,1734706270626,-150.0,0.00023455,4]
[346107016,1734706270637,-150.0,0.00023463,2]
[346107017,1734706270647,-150.0,0.00023469,4]
[346107018,1734706270658,-150.0,0.00023477,2]
[346107019,1734706270669,-150.0,0.00023478,2]
[346107020,1734706270680,-150.0,0.0002348,2]
[346107021,1734706270690,-322.98922,0.00023488,7]
[346107022,1734706270702,-1600.0,0.00023489,2]
[346107023,1734706270711,-150.0,0.00023489,2]
[346107024,1734706270722,-1300.0,0.000235,8]
[346107025,1734706270732,-150.0,0.00023521,2]
[346107026,1734706270742,-150.0,0.00023532,4]
[346107027,1734706270753,-153.0,0.00023533,2]
[346107028,1734706270764,-153.0,0.00023533,2]
[346107029,1734706270774,-153.0,0.00023533,2]
[346107030,1734706270784,-153.0,0.00023533,2]
[346107031,1734706270796,-153.0,0.00023533,2]
[346107032,1734706270807,-153.0,0.00023533,2]